Cogmind - Beta 9.2 @@@ ROGUE MODE // 2019.12.05 @ 23:03:32 Player: Cipherpunk Result: Destroyed by G-47 Trooper with Particle Gun Performance ------------- Evolutions (3) 1500 Regions Visited (6) 1200 Robots Destroyed (119) 595 Value Destroyed (3148) 3148 Prototype IDs (10) 200 Alien Tech Used (0) 0 Bonus (385) 385 TOTAL SCORE: 7028 Bonus ------- High Alert Combat Kills 388 Follower Combat Kills 42 Friendly Fire -45 Cogmind --------- Core Integrity 0/700 Matter 166/300 Energy 44/100 System Corruption 0% Temperature Cool (27) Movement Core (200) Ox3 Location -7/Storage Parts ------- > --- POWER (1) -------- (None) > --- PROPULSION (3) --- (None) > --- UTILITY (7) ------ Medium Storage Unit Advanced Signal Interpreter Improved Utility Shielding Hacking Suite Hacking Suite Hacking Suite Hacking Suite > --- WEAPON (2) ------- Katana > --- INVENTORY (8) ---- Xenon Bombardment Thruster Improved Sensor Array Advanced Terrain Scanner System Shield System Shield Peak State ------------ > --- POWER ------------ Light Nuclear Core > --- PROPULSION ------- Xenon Bombardment Thruster Xenon Bombardment Thruster Xenon Bombardment Thruster > --- UTILITY ---------- Medium Storage Unit Advanced Signal Interpreter Improved Utility Shielding Hacking Suite Hacking Suite Hacking Suite Hacking Suite > --- WEAPON ----------- Katana Chainsword > --- INVENTORY -------- Xenon Bombardment Thruster Xenon Bombardment Thruster Xenon Bombardment Thruster Improved Sensor Array Advanced Terrain Scanner Improved Terrain Scan Processor Improved ECM Suite Missile Launcher [Rating: 43] Favorites ----------- Power Light Nuclear Core Engine Heavy Ion Engine Power Core Light Nuclear Core Propulsion Light Treads Treads Light Treads Leg Aluminum Leg Wheel Compact Wheel Flight Unit Xenon Bombardment Thruster Utility Large Storage Unit Device Disposable Heat Sink Storage Large Storage Unit Processor Improved Signal Interpreter Hackware Hacking Suite Protection Improved Weapon Shielding Weapon Enhanced Autogun Energy Gun Particle Gun Energy Cannon Light EM Pulse Cannon Ballistic Gun Enhanced Autogun Launcher Grenade Launcher Special Weapon Mining Laser Slashing Weapon Katana Special Melee Weapon Improved Datajack Build | -11 -10 -10 -9 -8 -7 -7 ------- Run | Scr Mat Min Mat Mat Fac Sto Slots Evolved 6 | . . . 2 2 2 . Power . | . . . . . . . Propulsion 1 | . . . 1 . . . Utility 5 | . . . 1 2 2 . Weapon . | . . . . . . . Parts Attached 123 | 6 15 15 28 33 16 10 Power 10 | 1 2 1 2 3 1 . Engine 6 | 1 2 . 2 1 . . Core 4 | . . 1 . 2 1 . Reactor . | . . . . . . . Propulsion 47 | 2 2 5 15 12 6 5 Treads 17 | . . . 5 12 . . Leg 11 | . . 5 3 . . 3 Wheel 11 | 2 2 . 7 . . . Hover . | . . . . . . . Flight 8 | . . . . . 6 2 Utility 23 | 1 3 2 1 7 7 2 Device 3 | . 2 . . . 1 . Storage 7 | 1 1 1 1 2 1 . Processor 5 | . . 1 . 3 1 . Hackware 5 | . . . . . 4 1 Protection 3 | . . . . 2 . 1 Artifact . | . . . . . . . Weapon 43 | 2 8 7 10 11 2 3 Energy Gun 4 | 1 . . 1 2 . . Energy Cannon 10 | . 4 2 2 2 . . Ballistic Gun 18 | 1 3 2 7 5 . . Ballistic Cannon . | . . . . . . . Launcher 6 | . 1 2 . 2 . 1 Special Weapon 2 | . . 1 . . 1 . Impact Weapon . | . . . . . . . Slashing Weapon 2 | . . . . . 1 1 Piercing Weapon . | . . . . . . . Special Melee Weapon 1 | . . . . . . 1 Unidentified Prototypes 3 | . . . 1 1 1 . Parts Lost 37 | . 1 1 15 8 1 11 Power 3 | . . . 1 1 . 1 Propulsion 19 | . . 1 6 4 . 8 Utility . | . . . . . . . Weapon 15 | . 1 . 8 3 1 2 Highest Loss Streak 11 | . 1 1 11 3 1 11 Average Slot Usage (%) 95 | . 98 98 89 98 90 95 Engine 4 | . 13 1 6 3 . . Core 5 | . . 12 3 5 7 6 Treads 12 | . . . 12 26 . . Leg 3 | . . 15 3 . . . Wheel 8 | . 28 10 13 . . . Flight 2 | . . . . . 21 21 Device 2 | . 13 1 . . 6 3 Storage 17 | . 14 14 21 21 8 7 Processor 12 | . . 12 11 19 12 7 Hackware 2 | . . . . . 22 30 Protection 1 | . . . . 3 . 3 Energy Gun 1 | . 3 . 6 . . . Energy Cannon 4 | . 15 12 1 . . . Ballistic Gun 11 | . 8 10 10 17 1 . Launcher 1 | . . 4 . . . . Naked Turns . | . . . . . . . Heaviest Build 77 | 11 30 43 60 77 75 20 Greatest Support 60 | 32 32 32 60 60 60 21 Greatest Overweight (x) 18 | . . 8 18 1 1 3 Average Overweight (x) . | . . . . . . . Largest Inventory Capacity 24 | 6 10 12 18 24 24 8 Average Capacity 15 | 5 8 10 17 20 9 8 Most Carried 24 | 2 10 12 18 24 24 8 Average Carried 14 | 1 8 10 16 19 9 7 Final Capacity 24 | 6 10 12 18 24 8 8 Final Carried 24 | 2 10 12 18 24 8 5 Class Distribution -------------------- 55% | Mutant 18% | Scavenger-Mutant 17% | Hauler-Mutant 5% | Hacker-Mutant Dominant Class ---------------- Mutant | -10/Materials Mutant | -10/Mines Mutant | -9/Materials Hauler-Mutant | -8/Materials Hacker-Scout | -7/Factory Hacker-Mutant | -7/Storage Resources | -11 -10 -10 -9 -8 -7 -7 ----------- Run | Scr Mat Min Mat Mat Fac Sto Matter Collected 2486 | 260 204 252 446 1193 . 131 Remotely . | . . . . . . . Salvage Created 3726 | . 415 208 858 1879 . 366 Parts 232 | . 27 12 65 104 . 24 Haulers Intercepted 7 | . . . 2 5 . . Recyclers Shooed 1 | . . . . 1 . . Parts Field Recycled . | . . . . . . . Retrieved Matter . | . . . . . . . Parts Self-Destructed . | . . . . . . . Prevented . | . . . . . . . Kills | -11 -10 -10 -9 -8 -7 -7 ------- Run | Scr Mat Min Mat Mat Fac Sto Combat Hostiles Destroyed 84 | . 11 10 20 38 . 5 Guns 50 | . 4 . 19 27 . . Cannons 12 | . 7 4 1 . . . AOE 22 | . . 6 . 11 . 5 Classes Destroyed 11 | . 6 1 2 2 . . Worker 4 | . . 1 . 2 . 1 Builder 2 | . . . . 2 . . Tunneler 1 | . 1 . . . . . Hauler 7 | . . . 2 5 . . Recycler 5 | . 1 . . 3 . 1 Operator 7 | . 1 . . 3 . 3 Watcher 9 | . 2 . 2 3 . 2 Swarmer 31 | . 9 5 7 10 . . Grunt 38 | . 2 5 7 19 . 5 Sentry 14 | . . . 6 8 . . Hunter 1 | . . . . 1 . . Best Kill Streak 9 | . 4 3 6 9 . 7 Combat Bots Only 7 | . 3 3 6 7 . 5 Max Kills in Single Turn 3 | . 2 2 1 3 . 3 Gunslinging . | . . . . . . . Exploded 3 | . . 2 . 3 . 2 Melee . | . . . . . . . Uniques/NPCs Destroyed . | . . . . . . . Combat | -11 -10 -10 -9 -8 -7 -7 -------- Run | Scr Mat Min Mat Mat Fac Sto Damage Taken 5967 | . 341 285 1708 2263 213 1157 Core 1559 | . 64 86 366 341 128 574 Absorbed by Shields . | . . . . . . . Core Remaining (%) 46 | 100 . 40 8 38 . . Volleys Fired 299 | . 34 16 92 149 3 5 Largest 2 | . 2 2 2 2 1 1 Hottest 121 | . 112 86 121 85 100 36 Shots Fired 513 | . 62 26 143 274 3 5 Gun 428 | . 26 9 135 258 . . Cannon 56 | . 35 9 8 4 . . Launcher 26 | . 1 8 . 12 . 5 Special 3 | . . . . . 3 . Kinetic 387 | . 17 9 110 251 . . Thermal 44 | . 9 . 25 7 3 . Explosive 26 | . 1 8 . 12 . 5 Electromagnetic 56 | . 35 9 8 4 . . Robot Hit Streak 17 | . 9 17 15 17 . 4 Robot Miss Streak 6 | . 3 4 3 6 1 2 Penetration Max . | . . . . . . . Secondary Targets 5 | . . . 2 3 . . Max Gunslinging Chain 1 | . . . 1 1 . . Shots Hit Robots 375 | . 36 18 111 200 . 10 Core Hits 200 | . 16 15 42 107 . 20 Critical Hits 7 | . . . 1 6 . . Critical Kills 3 | . . . . 3 . . Critical Parts Destroyed 4 | . . . 1 3 . . Melee Attacks 32 | . . . . . . 32 Impact . | . . . . . . . Slashing 31 | . . . . . . 31 Piercing . | . . . . . . . Sneak Attacks 2 | . . . . . . 2 Combat Hostiles . | . . . . . . . Follow-up Attacks . | . . . . . . . Damage Inflicted 8845 | . 828 932 1473 4530 . 1082 Guns 4725 | . 171 35 1336 3183 . . Cannons 1009 | . 606 174 134 95 . . Explosions 2679 | . 51 723 . 1252 . 653 Melee 429 | . . . . . . 429 Ramming 3 | . . . 3 . . . Kinetic 4283 | . 108 35 1026 3114 . . Thermal 644 | . 63 161 310 110 . . Explosive 2477 | . 51 562 . 1211 . 653 Electromagnetic 1009 | . 606 174 134 95 . . Impact . | . . . . . . . Slashing 429 | . . . . . . 429 Piercing . | . . . . . . . Highest Corruption . | . . . . . . . Average Corruption . | . . . . . . . Corruption Purged . | . . . . . . . Overload Shots . | . . . . . . . Overflow Damage 181 | . 45 37 8 58 . 33 Projectiles 53 | . 45 . 8 . . . Explosions 112 | . . 37 . 58 . 17 Melee 16 | . . . . . . 16 Knockbacks . | . . . . . . . Impact . | . . . . . . . Kinetic . | . . . . . . . Secondary . | . . . . . . . Self-Inflicted Damage 280 | . . 51 1 174 . 54 Shots 10 | . . 3 . 4 . 3 Rammed 1 | . . . 1 . . . Targets Rammed 1 | . . . 1 . . . Kicked . | . . . . . . . Crushed . | . . . . . . . Highest Temperature 187 | . 187 69 152 138 23 15 Average Temperature 32 | . 50 23 38 20 13 7 Received Heat Transfer 2103 | . 12 42 639 873 72 465 Siege Activations . | . . . . . . . Robots Corrupted 1 | . 1 . . . . . Combat Hostiles . | . . . . . . . Parts Fried 7 | . 6 1 . . . . Impact Corruptions . | . . . . . . . Robots Melted . | . . . . . . . Combat Hostiles . | . . . . . . . Parts Melted 1 | . . . 1 . . . Heat Transferred 1360 | . 185 200 740 235 . . Parts Sabotaged . | . . . . . . . Parts Stolen . | . . . . . . . Parts Stripped . | . . . . . . . Power Chain Reactions 2 | . . 1 . 1 . . Missiles Intercepted . | . . . . . . . Alert | -11 -10 -10 -9 -8 -7 -7 ------- Run | Scr Mat Min Mat Mat Fac Sto Peak Influence 895 | . 230 423 350 895 419 519 Average Influence 354 | . 90 236 178 594 384 319 Maximum Alert Level 3 | . 1 2 1 3 2 2 Low Security (%) 30 | 100 88 23 66 2 . . Level 1 38 | . 11 73 33 21 98 89 Level 2 13 | . . 3 . 32 1 10 Level 3 17 | . . . . 43 . . Level 4 . | . . . . . . . Level 5 . | . . . . . . . High Security . | . . . . . . . Max Security . | . . . . . . . Squads Dispatched 22 | . 3 . 2 11 2 4 Investigation 6 | . 2 . . 3 1 . Extermination . | . . . . . . . Reinforcement 10 | . 1 . 2 2 1 4 Assault 2 | . . . . 2 . . Garrison 4 | . . . . 4 . . Intercept . | . . . . . . . Construction Impeded . | . . . . . . . Haulers Reinforced . | . . . . . . . Stealth | -11 -10 -10 -9 -8 -7 -7 --------- Run | Scr Mat Min Mat Mat Fac Sto Distress Signals 10 | . 1 . 2 5 . 2 Communications Jammed . | . . . . . . . Distress Signals . | . . . . . . . Times Spotted 166 | . 18 13 32 59 19 25 Peak Tracking Total 16 | . 4 3 6 6 10 16 Tactical Retreats 14 | . 1 1 . 4 3 5 Traps | -11 -10 -10 -9 -8 -7 -7 ------- Run | Scr Mat Min Mat Mat Fac Sto Traps Triggered 6 | . 3 . . . 1 2 Indirectly . | . . . . . . . Trap Hack Attempts . | . . . . . . . Triggered . | . . . . . . . Disarmed . | . . . . . . . Reprogrammed . | . . . . . . . Reused . | . . . . . . . Traps Extracted . | . . . . . . . Installed . | . . . . . . . Triggered . | . . . . . . . Machines | -11 -10 -10 -9 -8 -7 -7 ---------- Run | Scr Mat Min Mat Mat Fac Sto Machines Disabled 13 | . . 3 . 6 . 4 Max in Single Turn 2 | . . 2 . 2 . 2 Machines Sabotaged . | . . . . . . . Garrisons Compromised . | . . . . . . . Overloaded Fab Kills . | . . . . . . . Fab Network Shutdowns . | . . . . . . . Hacking | -11 -10 -10 -9 -8 -7 -7 --------- Run | Scr Mat Min Mat Mat Fac Sto Machines Accessed 23 | . 5 1 4 10 2 1 Terminals 18 | . 5 . 3 9 . 1 Fabricators 1 | . . . . . 1 . Repair Stations . | . . . . . . . Recycling Units . | . . . . . . . Scanalyzers 3 | . . . 1 1 1 . Garrison Access . | . . . . . . . Total Hacks 81 | . 15 1 26 32 6 1 Successful 46 | . 5 1 17 18 4 1 Failed 35 | . 10 . 9 14 2 . Catastrophic 8 | . 3 . 2 3 . . Database Lockouts . | . . . . . . . Manual 43 | . 12 . 16 15 . . Terminals 66 | . 15 . 20 30 . 1 Fabricators 4 | . . . . . 4 . Repair Stations . | . . . . . . . Recycling Units . | . . . . . . . Scanalyzers 10 | . . . 6 2 2 . Garrison Access . | . . . . . . . Terminal Hacks 22 | . 2 1 8 10 . 1 Record 14 | . . . 7 7 . . Prototype ID Bank 4 | . 1 . 1 2 . . Open Door 2 | . . 1 . . . 1 Dispatch Records 1 | . . . . 1 . . Recall Assault 1 | . 1 . . . . . Fabricator Hacks 2 | . . . . . 2 . Load Schematic 1 | . . . . . 1 . Build 1 | . . . . . 1 . Repair Station Hacks . | . . . . . . . Recycling Unit Hacks . | . . . . . . . Scanalyzer 10 | . . . 6 2 2 . Insert Component 5 | . . . 3 1 1 . Analyze 5 | . . . 3 1 1 . Garrison Access Hacks . | . . . . . . . Unauthorized Hacks 35 | . 12 . 7 16 . . Terminals 12 | . 3 . 3 6 . . Botnet 10 | . 3 . 3 4 . . Operators 2 | . . . . 2 . . Fabricators . | . . . . . . . Repair Stations . | . . . . . . . Recycling Units . | . . . . . . . Scanalyzers . | . . . . . . . Garrison Access . | . . . . . . . Data Cores Recovered . | . . . . . . . Used . | . . . . . . . Hacking Detections 20 | . 5 . 4 9 2 . Full Trace Events 7 | . 1 . 1 4 1 . Feedback Events . | . . . . . . . Feedback Blocked . | . . . . . . . Robot Schematics Acquired . | . . . . . . . Robots Built . | . . . . . . . Matter . | . . . . . . . Time . | . . . . . . . Total Robot Build Rating . | . . . . . . . Part Schematics Acquired 4 | . . . 2 1 1 . Parts Built 1 | . . . . . 1 . Matter 146 | . . . . . 146 . Time 36 | . . . . . 36 . Total Part Build Rating 3 | . . . . . 3 . Parts Repaired . | . . . . . . . Time . | . . . . . . . Parts Recycled . | . . . . . . . Recycled Matter . | . . . . . . . Retrieved Matter . | . . . . . . . Retrieved Components . | . . . . . . . Parts Scanalyzed 5 | . . . 3 1 1 . Part Schematics Acquired 4 | . . . 2 1 1 . Parts Damaged . | . . . . . . . Bothacking | -11 -10 -10 -9 -8 -7 -7 ------------ Run | Scr Mat Min Mat Mat Fac Sto Used RIF Installer . | . . . . . . . Robots Hacked . | . . . . . . . Non-combat . | . . . . . . . Combat . | . . . . . . . Robot Hacks Applied . | . . . . . . . Relay Couplers Released . | . . . . . . . Robots Rewired . | . . . . . . . Allies Hacked . | . . . . . . . Hacks Repelled . | . . . . . . . Allies | -11 -10 -10 -9 -8 -7 -7 -------- Run | Scr Mat Min Mat Mat Fac Sto Total Allies 1 | . . 1 . . . . Largest Group 1 | . . 1 . . . . Highest-Rated Group 31 | . . 31 . . . . Highest-Rated Ally 31 | . . 31 . . . . Total Orders . | . . . . . . . Ally Attacks 6 | . . 6 . . . . Total Damage 65 | . . 65 . . . . Kills 2 | . . 2 . . . . Allies Corrupted . | . . . . . . . Allies Melted . | . . . . . . . Intel | -11 -10 -10 -9 -8 -7 -7 ------- Run | Scr Mat Min Mat Mat Fac Sto Robot Analysis Total . | . . . . . . . Derelict Logs Recovered 1 | . . 1 . . . . Drone Launches . | . . . . . . . Drone Recoveries . | . . . . . . . Exploration | -11 -10 -10 -9 -8 -7 -7 ------------- Run | Scr Mat Min Mat Mat Fac Sto Turns Passed 5266 | 55 695 959 1011 2056 262 228 Spaces Moved 3392 | 41 512 677 461 833 521 347 Core 7 | 4 . 1 1 . . 1 Treads 1065 | . . . 227 833 5 . Legs 410 | . . 350 55 . . 5 Wheels 1053 | 37 512 326 178 . . . Hover . | . . . . . . . Flight 857 | . . . . . 516 341 Fastest Speed 30 | 50 100 100 100 160 30 34 Average Speed 115 | 95 100 130 149 180 32 36 Slowest Speed 950 | 100 100 450 950 185 183 200 Overloaded Moves . | . . . . . . . Propulsion Burnouts . | . . . . . . . Robots Hopped 6 | . . . . . 3 3 Cave-ins Triggered . | . . . . . . . Exploration Rate (%) 52 | 4 72 98 50 69 15 60 Regions Visited 6 Branch Regions 2 Pre-discovered Areas 1 | . . 1 . . . . Known Exits Taken 4 | . . 1 1 1 1 . Unknown Exits Taken 2 | 1 1 . . . . . Scrap Searched 3 | . . 3 . . . . Spaces Dug 17 | . . . . . . 17 Terrain Destroyed 217 | . 10 63 . 102 . 42 Melee 17 | . . . . . . 17 Projectile . | . . . . . . . AOE 200 | . 10 63 . 102 . 25 Actions | -11 -10 -10 -9 -8 -7 -7 --------- Run | Scr Mat Min Mat Mat Fac Sto Total 4279 | 54 632 728 657 1203 609 396 Wait 278 | 6 51 7 50 121 41 2 Move 3374 | 40 511 676 460 832 514 341 Hop 6 | . . . . . 3 3 Pick Up 73 | 2 11 4 14 34 6 2 Fast Attach 48 | 6 7 5 13 7 4 6 Attach 34 | . . . 11 10 10 3 Detach 15 | . . . 6 3 5 1 Swap 41 | . 8 10 4 16 2 1 Drop 81 | . 10 10 6 31 21 3 Fire 299 | . 34 16 92 149 3 5 Melee 29 | . . . . . . 29 Ram . | . . . . . . . Kick 1 | . . . 1 . . . Crush . | . . . . . . . Escape Stasis . | . . . . . . . Rewire . | . . . . . . . Trap . | . . . . . . . Miscellaneous . | . . . . . . . Route ------- -11/Scrapyard -10/Materials (discovered 3 exits: *Mat x2 / *Min) -10/Mines (discovered 2 exits: *Mat x2) -9/Materials (discovered 3 exits: *Mat / [*Min x2]) -8/Materials (discovered 2 exits: *Fac x2) -7/Factory -7/Storage History --------- Turn | Location | Event 15 | -11/Scrapyard | Discovered new exit (range 15) 56 | -11/Scrapyard | Entered Materials 306 | -10/Materials | Build established: Mutant 368 | -10/Materials | Discovered new exit (range 7) 683 | -10/Materials | Discovered new exit (range 5) 716 | -10/Materials | Discovered new exit (range 7) 751 | -10/Materials | Entered Mines 860 | -10/Mines | Discovered new exit (range 8) 867 | -10/Mines | Identified exit to Materials 951 | -10/Mines | Received a Mining Laser from a helpful Derelict 1082 | -10/Mines | Learned location of Zion (-7) 1184 | -10/Mines | Core integrity fell below 50% 1342 | -10/Mines | A weapon hastily lodged in a ceiling crevice suddenly fell to the ground 1412 | -10/Mines | Discovered exit to Materials (range 14) 1469 | -10/Mines | Met a Derelict who couldn't figure out how to use a Trap Extractor 1710 | -10/Mines | Entered Materials 1710 | -9/Materials | Evolved 2 slots: Propulsion x1, Utility x1 1831 | -9/Materials | Discovered new exit (range 16) 2089 | -9/Materials | Core integrity fell below 50% 2130 | -9/Materials | Core integrity fell below 20% 2156 | -9/Materials | Lost 11 parts (1p5n5w) 2169 | -9/Materials | Discovered new exit (range 16) 2409 | -9/Materials | Discovered new exit (range 15) 2592 | -9/Materials | Build established: Scavenger-Mutant 2680 | -9/Materials | Identified exit to Materials 2721 | -9/Materials | Entered another Materials area 2721 | -8/Materials | Evolved 2 slots: Utility x2 2870 | -8/Materials | Lost 3 parts (2n1w) 3348 | -8/Materials | Garrison activated, responded to threat 3660 | -8/Materials | Build established: Mutant 3668 | -8/Materials | Destroyed 7 combat bots 3675 | -8/Materials | Discovered new exit (range 16) 3731 | -8/Materials | Identified exit to Factory 3845 | -8/Materials | Core integrity fell below 50% 3855 | -8/Materials | Garrison activated, responded to threat 4170 | -8/Materials | Build established: Hauler-Mutant 4582 | -8/Materials | Discovered exit to Factory (range 11) 4721 | -8/Materials | First assault squad dispatched 4777 | -8/Materials | Entered Factory 4777 | -7/Factory | Evolved 2 slots: Utility x2 4957 | -7/Factory | Fabricated Hacking Suite (x1) 5034 | -7/Factory | Discovered new exit (range 12) 5039 | -7/Factory | Identified exit to Storage 5039 | -7/Factory | Entered Storage 5246 | -7/Storage | Core integrity fell below 50% 5264 | -7/Storage | Core integrity fell below 20% 5267 | -7/Storage | Destroyed by G-47 Trooper with Particle Gun Last Messages --------------- 05246_ G-47 Trooper destroyed. 05246_ K-01 Serf destroyed. 05246_ Xenon Bombardment Thruster destroyed. 05246_ Destroyed Xenon Bombardment Thruster. 05248_ The unstable cave ceiling collapses. 05248_ Lgt. Ion Engine crushed. 05248_ G-47 Trooper destroyed. 05248_ Component Storage disabled. 05252_ The unstable cave ceiling collapses. 05253_ Missile Launcher destroyed. 05255_ The unstable cave ceiling collapses. 05255_ Acquired Aluminum Leg. 05258_ Acquired 33 matter. 05258_ Xenon Bombardment Thruster destroyed. 05260_ K-01 Serf collects debris. 05260_ Xenon Bombardment Thruster destroyed. 05261_ Acquired Aluminum Leg. 05262_ K-01 Serf collects debris. 05263_ Acquired Aluminum Leg. 05263_ Aluminum Leg destroyed. Map ----- +----------------------------------------------------+ | # + #????????????????????????????? | | + ####### #????????????????????????????? | | # #?????# #????????????????????????????? | | # #?????# #????????????????????????????? | | + #?????# #????????????????????????????? | | # #?????# #????????????????????????????? | | # #?????# #????????????????????????????? | | # #?????# #????????????????????????????? | | ###########?????# #????????????????????????????? | | ################# #????????????????????????????? | | #????????????????????????????? | | ^ #????????????????????????????? | | #????????????????????????????? | | "" """" ##########????????????????????????????? | | """ """" #???????????########??????????????????? | | """ """" #???????????# ??????????????????? | | """^ """" #???????????# ?#????????????????? | | """ """" #??########## """ #????????????????? | | #??# g # """ #????????????????? | | ^ #??# """"" # """ #?? +????????????? | | """ """ #??# """"" # # #?????????????? | | """ """ #??# """" # / #?????????????? | | """ """ #??# g #?? #?????????????? | | """ #??# " " g # ## #####?????????? | | """ #### " Y %T %%=% ????????? | | + " gg @ = % k ????????? | | = #### Y g ######?????????????? | | #??### # # #?????????????????? | | ###""T""####????### ##?????????????????? | | #?#"""""#?????????## " #?????????????????? | | #?#######??????????## " ##?????????????????? | | ????????????????????# " #??????????????????? | | ????????????????????# #??????????????????? | | ????????????????????# #??????????????????? | | ????????????????????# ^ #??????????????????? | | ????????????????????# #??????????????????? | | ????????????????????###########??????????????????? | | | | | | | | | | | | | | | | | | | | | | | | | | | +----------------------------------------------------+ Best States ------------- Heat Dissipation 34 Coolant Potential 50 Energy Generation 14 Energy Capacity 280 Matter Stores 300 Matter Capacity 300 Sight Range 20 Robot Scan Range 13 Terrain Scan Density 10 Armor Coverage 150 Resistance: KI 20 Utility Shielding 66 Weapon Shielding 66 Evasion (%) 64 Recoil Reduction 3 Offensive Hacking 40 Item Schematics ----------------- Disposable Heat Sink | -9/Materials | Scanalyzed Lgt. EM Pulse Cannon | -9/Materials | Scanalyzed Hacking Suite | -8/Materials | Scanalyzed Cesium-ion Thruster | -7/Factory | Scanalyzed Robot Schematics ------------------ None Fabricated ------------ Hacking Suite | x1 | -7/Factory Alien Tech Used ----------------- None Achievements -------------- None Challenges ------------ None Game ------ Seed ElectronQuantumShielding Manual? 0 Play Time 01:12:19 Cumulative 49.0 hours Start 2019.12.05 @ 20:37:56 End 2019.12.05 @ 23:03:32 Sessions 1 Manual Loads 0 Difficulty Rogue Special Mode None Game No. 42 Rogue 42 Adventurer 0 Explorer 0 Win Type - Total 0 Types 0/0/0/0/0/0/0 Lore% 21 Gallery% 42 Achievement% 28 Wizard Run 0 Options --------- ASCII 0 Keyboard 1 Movement Numpad Keybinds 0 Fullscreen 2 Font 18/SmallcapsGlow Map View 76x50 Tactical HUD 1 Map Filters NONE Filters NONE Steam 1 RUN: ca92223a-2dd8-4c65-9d57-5e6c62857c2d